bitfinex/quotes_SOLUSD_20240913
["timestamp","ask_amount","ask_price","bid_price","bid_amount"]
[1726270437079,9.0,138.77,138.76,0.12549]
[1726270439954,9.0,138.77,138.75,23.902374]
[1726270444069,9.0,138.77,138.76,0.12549]
[1726270451377,9.0,138.77,138.75,23.34964358]
[1726270453283,9.0,138.77,138.76,0.12549]
[1726270453460,9.0,138.77,138.76,0.25098]
[1726270454165,9.0,138.77,138.76,0.37647]
[1726270454378,9.0,138.79,138.77,0.12549]
[1726270454560,9.0,138.79,138.78,0.12549]
[1726270454764,9.0,138.79,138.78,0.37647]
[1726270455485,9.0,138.81,138.79,0.12549]
[1726270455863,9.0,138.81,138.8,0.12549]
[1726270456371,9.0,138.81,138.8,0.37647]
[1726270456581,0.2574248,138.82,138.81,0.12549]
[1726270456781,0.2574248,138.82,138.81,0.37647]
[1726270497818,2.2574248,138.83,138.82,0.12549]
[1726270498115,2.2574248,138.83,138.82,0.37647]
[1726270503811,2.2574248,138.85,138.83,0.12549]
[1726270504011,2.2574248,138.85,138.84,0.12549]
[1726270504206,2.2574248,138.85,138.84,0.37647]
[1726270509008,0.2574248,138.86,138.85,20.12549]
[1726270509331,0.2574248,138.86,138.85,34.88214467]
[1726270510432,0.2574248,138.86,138.85,20.37647]
[1726270512201,0.2574248,138.86,138.85,14.88214467]
[1726270512400,0.2574248,138.86,138.85,34.88214467]
[1726270514024,0.0065348,138.86,138.85,34.88214467]
[1726270515436,0.2574248,138.9,138.87,0.12549]
[1726270515806,0.2574248,138.9,138.88,20.0]
[1726270516306,0.2574248,138.9,138.89,0.25098]
[1726270516907,0.2574248,138.9,138.89,0.12549]
[1726270517431,0.2574248,138.9,138.89,0.25098]
[1726270517813,0.2574248,138.9,138.89,0.37647]
[1726270519633,0.2574248,138.9,138.89,20.37647]
[1726270522540,0.2574248,138.9,138.89,34.88214467]
[1726270525134,0.2574248,138.9,138.89,0.37647]
[1726270525445,0.2574248,138.9,138.89,20.37647]
[1726270526946,0.2574248,138.9,138.86,20.0]
[1726270527152,2.5148496,138.9,138.85,10.07510587]
[1726270527327,2.5148496,138.9,138.82,21.32969627]
[1726270527328,2.5148496,138.9,138.83,14.50567467]
[1726270527530,15.6322,138.89,138.82,67.29585992]
[1726270528725,15.6322,138.89,138.83,20.25098]
[1726270528926,15.6322,138.89,138.84,0.25098]
[1726270529129,2.2574248,138.86,138.82,10.07510587]
[1726270529340,2.2574248,138.86,138.81,7.52624695]
[1726270531223,2.2574248,138.86,138.82,10.07510587]
[1726270532044,2.2574248,138.86,138.83,20.0]
[1726270532345,2.2574248,138.86,138.84,0.37647]
[1726270532724,2.2574248,138.86,138.85,20.25098]
[1726270532924,2.2574248,138.86,138.85,20.37647]
[1726270537629,15.6322,138.89,138.86,24.027864]
[1726270537846,15.6322,138.89,138.88,44.027864]
[1726270538044,15.6322,138.89,138.88,44.153354]
[1726270538653,0.2574248,138.9,138.88,44.153354]
[1726270538830,0.2574248,138.9,138.89,0.37647]
[1726270539368,0.2574248,138.9,138.89,20.37647]
[1726270542452,0.2574248,138.9,138.89,34.88214467]
[1726270549666,0.2574248,138.9,138.89,20.37647]
[1726270549845,0.2574248,138.9,138.86,20.0]
[1726270550032,0.2574248,138.9,138.87,2.884235]
[1726270551042,0.2574248,138.9,138.88,24.153354]
[1726270551257,0.2574248,138.9,138.89,20.0]
[1726270551442,0.2574248,138.9,138.89,44.153354]
[1726270559349,0.2574248,138.9,138.84,20.0]
[1726270559683,2.2574248,138.89,138.84,34.50567467]
[1726270560645,2.2574248,138.89,138.86,20.25098]
[1726270560866,2.2574248,138.89,138.88,20.25098]
[1726270561071,2.2574248,138.89,138.88,20.37647]
[1726270561248,2.2574248,138.87,138.83,17.6018299]
[1726270562471,2.2574248,138.89,138.84,44.027864]
[1726270562675,2.2574248,138.89,138.85,0.12549]
[1726270562858,2.2574248,138.89,138.85,10.20059587]
[1726270563058,0.2574248,138.9,138.85,10.20059587]
[1726270563369,0.2574248,138.9,138.88,23.776884]
[1726270563568,0.2574248,138.9,138.89,0.37647]
[1726270566679,0.2574248,138.9,138.89,20.37647]
[1726270575274,0.2574248,138.9,138.89,44.153354]
[1726270579787,0.2574248,138.9,138.89,86.86843338]
[1726270579989,0.2574248,138.9,138.89,101.37410805]
[1726270580189,0.2574248,138.9,138.89,86.86843338]
[1726270580667,0.2574248,138.9,138.89,101.37410805]
[1726270583271,0.2574248,138.9,138.89,44.153354]
[1726270583895,0.2574248,138.9,138.89,101.37410805]
[1726270584202,0.0066248,138.9,138.89,96.94353925]
[1726270584401,0.0066248,138.9,138.89,44.153354]
[1726270584571,0.0066248,138.9,138.89,0.37647]
[1726270588297,0.0066248,138.9,138.89,63.09154938]
[1726270589398,0.0066248,138.9,138.89,20.37647]
[1726270589598,0.0066248,138.9,138.89,63.09154938]
[1726270591092,0.0066248,138.9,138.89,66.84492902]
[1726270593708,0.0066248,138.9,138.89,63.09154938]
[1726270593889,0.0066248,138.9,138.89,66.84512767]
[1726270594378,0.0066248,138.9,138.89,24.13004829]
[1726270595278,0.0066248,138.9,138.89,66.84512767]
[1726270596281,0.0066248,138.9,138.89,24.13004829]
[1726270602700,0.0066248,138.9,138.89,66.84512767]
[1726270602897,0.0066248,138.9,138.89,76.92023354]
[1726270603382,0.0066248,138.9,138.89,100.69711754]
[1726270604486,0.0066248,138.9,138.89,57.98203816]
[1726270604799,0.0066248,138.9,138.89,54.22845987]
[1726270605001,0.0066248,138.9,138.89,57.98203816]
[1726270608211,0.0066248,138.9,138.89,54.22845987]
[1726270608990,0.0066248,138.9,138.89,57.9822614]
[1726270611611,0.0066248,138.9,138.89,54.22845987]
[1726270611797,0.0066248,138.9,138.89,57.98226186]
[1726270613596,0.0066248,138.9,138.89,115.20301591]
[1726270620310,0.0066248,138.9,138.89,57.98226186]
[1726270620516,0.0066248,138.9,138.89,33.95439786]
[1726270620816,2.2640496,138.9,138.89,3.75380199]
[1726270621117,2.2640496,138.9,138.89,3.75400309]
[1726270621317,0.0066248,138.9,138.89,3.75400309]
[1726270621512,15.3023248,138.94,138.91,42.71507938]
[1726270621817,15.3023248,138.94,138.92,23.75400309]
[1726270621818,17.5597496,138.94,138.92,23.75400309]
[1726270622023,17.5597496,138.94,138.93,3.75400309]
[1726270622315,17.5597496,138.94,138.93,3.87949309]
[1726270622531,17.5597496,138.94,138.93,4.00498309]
[1726270623594,17.5597496,138.94,138.93,4.13047309]
[1726270623794,17.5597496,138.94,138.93,3.87949309]
[1726270624224,17.5597496,138.94,138.93,3.75400309]
[1726270625497,17.5597496,138.94,138.93,3.87949309]
[1726270625699,17.5597496,138.94,138.93,4.00498309]
[1726270626396,17.5597496,138.94,138.93,4.13047309]
[1726270626994,17.5597496,138.94,138.93,0.37647]
[1726270627303,17.5597496,138.94,138.93,4.13054996]
[1726270627504,17.5597496,138.94,138.93,7.88425281]
[1726270628024,17.5597496,138.94,138.93,4.13017285]
[1726270630423,17.5597496,138.94,138.93,0.37647]
[1726270630617,17.5597496,138.94,138.93,4.13049234]
[1726270630940,17.5597496,138.94,138.93,0.37647]
[1726270631299,17.5597496,138.94,138.93,4.13049598]
[1726270636423,17.5597496,138.94,138.93,27.90737998]
[1726270636906,17.5597496,138.94,138.93,47.90737998]
[1726270637107,0.2574248,138.94,138.93,62.41305465]
[1726270637428,0.2574248,138.94,138.93,62.41215854]
[1726270637597,0.2574248,138.94,138.93,47.90648387]
[1726270640598,0.2574248,138.94,138.93,44.153354]
[1726270640932,0.2574248,138.94,138.93,47.9062476]
[1726270642425,0.2574248,138.94,138.93,47.90625488]
[1726270646632,0.2574248,138.94,138.93,62.41192955]
[1726270646923,0.2574248,138.94,138.93,71.93019886]
[1726270647107,0.2574248,138.94,138.93,57.42452419]
[1726270647528,2.5148496,138.94,138.93,47.90601883]
[1726270649631,0.2574248,138.94,138.93,47.90601883]
[1726270650336,0.2574248,138.94,138.93,44.153354]
[1726270651916,2.5148496,138.94,138.93,44.153354]
[1726270659751,0.2574248,138.94,138.93,44.153354]
[1726270660468,2.5148496,138.94,138.93,44.153354]
[1726270664631,2.2574248,138.92,138.91,20.0]
[1726270665752,2.2574248,138.92,138.9,20.0]
[1726270666255,2.2574248,138.92,138.89,20.0]
[1726270667054,2.2574248,138.92,138.9,0.37647]
[1726270674551,2.2574248,138.89,138.88,20.0]
[1726270675732,2.2574248,138.89,138.88,20.37647]
[1726270685271,2.2574248,138.89,138.88,21.81445942]
[1726270688567,2.2574248,138.89,138.88,20.37647]
[1726270689766,2.2574248,138.89,138.88,0.37647]
[1726270703274,2.2574248,138.89,138.88,25.5910017]
[1726270703473,2.2574248,138.89,138.88,45.5910017]
[1726270705387,2.2574248,138.89,138.88,44.153354]
[1726270710690,2.2574248,138.89,138.88,3.87975213]
[1726270711271,2.2574248,138.89,138.88,3.75426213]
[1726270712800,2.2574248,138.89,138.88,4.13073213]
[1726270716398,2.2574248,138.89,138.88,4.13088483]
[1726270724006,2.2574248,138.89,138.88,0.37647]
[1726270724600,2.2574248,138.89,138.88,4.13088483]
[1726270731200,2.2574248,138.89,138.88,4.13118185]
[1726270734811,2.2574248,138.89,138.88,4.00569185]
[1726270737897,2.2574248,138.89,138.88,0.25098]
[1726270738101,2.2574248,138.89,138.88,4.00556796]
[1726270740619,2.2574248,138.89,138.88,4.13105796]
[1726270741686,2.2574248,138.89,138.88,4.00556796]
[1726270742485,2.2574248,138.89,138.88,4.13105796]
[1726270747417,2.2574248,138.89,138.88,0.37647]
[1726270747599,2.2574248,138.89,138.88,4.13098363]
[1726270750814,2.2574248,138.89,138.88,0.37647]
[1726270751117,2.2574248,138.89,138.88,4.13080706]
[1726270754324,2.2574248,138.89,138.88,0.37647]
[1726270754631,2.2574248,138.89,138.88,4.1309014]
[1726270757020,2.2574248,138.89,138.88,4.0054114]
[1726270757523,2.2574248,138.89,138.88,3.7544314]
[1726270760513,2.2574248,138.89,138.88,3.2544314]
[1726270761107,2.2574248,138.89,138.86,0.25098]
[1726270761313,2.2574248,138.89,138.87,20.0]
[1726270762030,2.2574248,138.87,138.86,0.25098]
[1726270762227,2.2574248,138.87,138.86,0.37647]
[1726270762910,2.2574248,138.87,138.86,0.25098]
[1726270767350,2.2574248,138.87,138.85,20.25098]
[1726270768515,2.2574248,138.87,138.85,0.25098]
[1726270772833,2.2574248,138.87,138.84,0.25098]
[1726270773037,2.2574248,138.85,138.84,0.37647]
[1726270773411,2.2574248,138.85,138.83,23.776884]
[1726270775414,2.2574248,138.85,138.84,0.25098]
[1726270783139,2.2574248,138.83,138.81,20.0]
[1726270783325,2.2574248,138.83,138.8,0.2574248]
[1726270783526,2.2574248,138.81,138.8,0.2574248]
[1726270784335,2.2574248,138.81,138.8,24.2852888]
[1726270784530,2.2574248,138.81,138.8,44.4107788]
[1726270792254,2.2574248,138.85,138.82,44.027864]
[1726270792438,2.2574248,138.87,138.83,52.6437872]
[1726270792753,2.2574248,138.87,138.83,109.09436658]
[1726270800861,2.2574248,138.87,138.83,52.6437872]
[1726270801063,2.2574248,138.85,138.83,43.776884]
[1726270801564,2.2574248,138.87,138.83,94.98239658]
[1726270802361,2.2574248,138.87,138.84,0.12549]
[1726270802746,2.2574248,138.87,138.84,0.37647]
[1726270804969,2.2574248,138.85,138.83,8.4904332]
[1726270805146,2.2574248,138.85,138.8,28.29830306]
[1726270806153,2.2574248,138.83,138.8,14.56280306]
[1726270806471,2.2574248,138.83,138.8,7.78115226]
[1726270806975,2.2574248,138.83,138.81,20.0]
[1726270807570,2.2574248,138.83,138.8,7.78115226]
[1726270808355,2.2574248,138.81,138.8,7.78115226]
[1726270808558,2.2574248,138.81,138.8,0.2574248]
[1726270808870,2.2574248,138.81,138.8,20.3829148]
[1726270809575,2.2574248,138.85,138.8,20.3829148]
[1726270809787,2.2574248,138.87,138.83,0.25098]
[1726270809956,2.2574248,138.87,138.86,43.902374]
[1726270810151,2.2574248,138.87,138.86,44.153354]
[1726270810951,2.2574248,138.87,138.86,0.37647]
[1726270812458,2.2574248,138.84,138.81,24.027864]
[1726270812670,2.2574248,138.84,138.83,44.027864]
[1726270812979,2.2574248,138.84,138.83,0.37647]
[1726270813154,2.2574248,138.84,138.8,9.55869688]
[1726270813354,2.2574248,138.82,138.8,9.55869688]
[1726270814067,2.2574248,138.82,138.8,0.2574248]
[1726270815778,2.2574248,138.82,138.81,0.25098]
[1726270815976,2.2574248,138.82,138.81,24.153354]
[1726270816478,2.2574248,138.82,138.81,20.37647]
[1726270817484,2.2574248,138.82,138.81,0.37647]
[1726270820789,2.2574248,138.82,138.8,0.2574248]
[1726270821764,15.8882,138.81,138.8,0.2574248]
[1726270826764,2.2574248,138.76,138.75,0.2574248]
[1726270830291,18.3145248,138.76,138.75,0.2574248]
[1726270833394,2.2574248,138.76,138.75,0.6338948]
[1726270834792,2.2574248,138.76,138.75,24.4107788]
[1726270836386,2.2574248,138.76,138.75,0.6338948]
[1726270839382,2.2574248,138.76,138.75,0.3829148]
[1726270847392,2.2574248,138.76,138.75,0.6338948]
[1726270853715,2.2574248,138.76,138.75,0.2574248]
[1726270862800,18.0878248,138.76,138.75,0.2574248]
[1726270870515,18.0878248,138.76,138.71,0.2574248]
[1726270871228,2.2574248,138.72,138.71,0.2574248]
[1726270872222,2.2574248,138.72,138.71,0.5084048]
[1726270872459,2.2574248,138.72,138.71,0.6338948]
[1726270873312,2.2574248,138.74,138.72,0.25098]
[1726270873633,2.2574248,138.74,138.73,44.153354]
[1726270874429,0.2574248,138.86,138.74,23.902374]
[1726270874430,2.2574248,138.78,138.74,23.902374]
[1726270874611,2.2574248,138.78,138.77,44.027864]
[1726270874812,2.2574248,138.78,138.77,44.153354]
[1726270879232,2.2574248,138.76,138.74,13.7355]
[1726270879436,2.2574248,138.76,138.72,34.50567467]
[1726270879611,2.2574248,138.76,138.74,20.0]
[1726270880319,2.2574248,138.76,138.73,20.0]
[1726270880718,2.2574248,138.74,138.73,20.0]
[1726270881426,2.2574248,138.74,138.72,20.0]
[1726270882127,2.2574248,138.74,138.73,0.25098]
[1726270882326,2.2574248,138.74,138.73,0.37647]
[1726270883221,2.2574248,138.74,138.73,43.776884]
[1726270883452,2.2574248,138.74,138.73,20.0]
[1726270884128,2.2574248,138.72,138.71,0.2574248]
[1726270886334,2.2574248,138.72,138.71,0.5084048]
[1726270886937,2.2574248,138.72,138.71,0.6338948]
[1726270888724,2.2574248,138.72,138.71,44.4107788]
[1726270892949,2.2574248,138.72,138.71,48.16336682]
[1726270896060,2.2574248,138.72,138.71,48.16336952]
[1726270899261,2.2574248,138.72,138.71,44.4107788]
[1726270899459,2.2574248,138.72,138.71,48.16334473]
[1726270900852,2.2574248,138.72,138.71,4.38646073]
[1726270901053,2.2574248,138.72,138.71,0.2574248]
[1726270903969,2.2574248,138.72,138.71,0.3829148]
[1726270909945,2.2574248,138.72,138.71,0.2574248]
[1726270909946,18.1682248,138.72,138.71,0.2574248]
[1726270910663,2.2574248,138.72,138.71,0.2574248]
[1726270911241,2.2574248,138.72,138.71,0.3829148]
[1726270915458,2.2574248,138.72,138.71,0.6338948]
[1726270915867,2.2574248,138.72,138.71,24.4107788]
[1726270917459,2.2574248,138.72,138.71,44.4107788]
[1726270917668,2.2574248,138.74,138.72,44.027864]
[1726270917967,2.2574248,138.74,138.73,0.12549]
[1726270933482,2.2574248,138.72,138.71,0.2574248]
[1726270934664,2.2574248,138.72,138.71,0.5084048]
[1726270934989,2.2574248,138.72,138.71,44.4107788]
[1726270936276,2.2574248,138.74,138.73,0.25098]
[1726270936468,2.2574248,138.74,138.73,0.37647]
[1726270937376,2.2574248,138.74,138.73,20.37647]
[1726270937579,2.2574248,138.74,138.73,44.153354]
[1726270941482,15.0781,138.78,138.75,20.25098]
[1726270941483,2.2574248,138.76,138.75,20.25098]
[1726270941692,2.2574248,138.76,138.75,44.153354]
[1726270944286,2.2574248,138.78,138.75,44.153354]
[1726270944477,2.2574248,138.78,138.77,20.25098]
[1726270944673,2.2574248,138.78,138.77,44.153354]
[1726270946796,2.2574248,138.8,138.78,44.027864]
[1726270946969,2.2574248,138.8,138.79,0.12549]
[1726270956272,2.2574248,138.8,138.75,20.0]
[1726270956474,2.2574248,138.77,138.71,51.18143451]
[1726270956676,2.2574248,138.77,138.73,30.0]
[1726270957802,2.2574248,138.77,138.74,20.0]
[1726270957995,2.2574248,138.77,138.76,20.0]
[1726270958700,2.2574248,138.77,138.73,20.0]
[1726270959096,2.2574248,138.77,138.74,23.902374]
[1726270959477,2.2574248,138.77,138.76,23.776884]
[1726270959678,2.2574248,138.77,138.76,44.153354]
[1726270963391,2.2574248,138.77,138.76,47.90450294]
[1726270963590,2.2574248,138.77,138.76,44.153354]
[1726270964304,2.2574248,138.77,138.76,47.90458493]
[1726270967525,2.2574248,138.77,138.76,44.153354]
[1726270970513,2.2574248,138.77,138.76,47.90461397]
[1726270973628,2.2574248,138.77,138.76,44.153354]
[1726270973802,2.2574248,138.77,138.76,47.90415126]
[1726270976819,2.2574248,138.77,138.76,44.153354]
[1726270977020,2.2574248,138.77,138.76,47.90429171]
[1726270977607,2.2574248,138.77,138.76,3.75093771]
[1726270977807,2.2574248,138.77,138.75,3.75093771]
[1726270978320,2.2574248,138.77,138.76,3.75093771]
[1726270978498,2.2574248,138.77,138.75,3.75093771]
[1726270978699,2.2574248,138.77,138.76,3.75093771]
[1726270978920,2.2574248,138.77,138.76,44.153354]
[1726270979105,2.2574248,138.77,138.76,47.90429171]
[1726270980207,2.2574248,138.77,138.76,44.153354]
[1726270980427,2.2574248,138.77,138.76,47.90429171]
[1726270982422,2.2574248,138.77,138.76,47.90432016]
[1726270982626,2.2574248,138.77,138.76,44.153354]
[1726270982813,2.2574248,138.77,138.76,47.9043945]
[1726270986523,2.2574248,138.77,138.76,44.153354]
[1726270988819,2.2574248,138.77,138.76,20.37647]
[1726270989026,2.2574248,138.77,138.76,0.37647]
[1726270989615,2.2574248,138.73,138.72,20.0]
[1726270990227,2.2574248,138.73,138.71,8.46635513]
[1726270990936,2.2574248,138.73,138.72,24.153354]
[1726270991934,2.2574248,138.73,138.72,44.153354]
[1726270993133,2.2574248,138.73,138.72,24.153354]
[1726270994541,2.2574248,138.73,138.72,44.153354]
[1726270995638,2.2574248,138.73,138.71,0.2574248]
[1726270996923,2.2574248,138.73,138.72,0.12549]
[1726271004145,2.2574248,138.73,138.72,0.25098]
[1726271004329,2.2574248,138.73,138.72,24.153354]
[1726271004533,2.2574248,138.73,138.72,44.153354]
[1726271006635,2.2574248,138.75,138.74,23.776884]
[1726271006820,2.2574248,138.75,138.74,0.37647]
[1726271011118,2.2574248,138.77,138.75,0.12549]
[1726271011319,2.2574248,138.77,138.75,0.37647]
[1726271013334,2.2574248,138.73,138.71,0.2574248]
[1726271015356,2.2574248,138.73,138.72,0.12549]
[1726271015728,2.2574248,138.73,138.71,0.2574248]
[1726271020254,2.2574248,138.73,138.72,0.25098]
[1726271020579,2.2574248,138.73,138.72,24.153354]
[1726271021356,2.2574248,138.73,138.72,44.153354]
[1726271028855,2.2574248,138.73,138.72,24.153354]
[1726271029152,2.2574248,138.73,138.72,44.153354]
[1726271029948,2.2574248,138.73,138.72,20.12549]
[1726271030355,2.2574248,138.73,138.72,0.12549]
[1726271031553,2.2574248,138.73,138.71,0.2574248]
[1726271040462,17.9805248,138.73,138.71,0.2574248]
[1726271041767,17.9805248,138.73,138.72,0.37647]
[1726271042550,2.2574248,138.73,138.72,24.153354]
[1726271042748,2.2574248,138.73,138.72,44.153354]
[1726271046756,2.2574248,138.73,138.72,47.9055692]
[1726271048749,2.2574248,138.73,138.72,44.153354]
[1726271048955,2.2574248,138.73,138.72,47.9052476]
[1726271052273,2.2574248,138.73,138.72,62.41092227]
[1726271063090,2.2574248,138.75,138.73,20.0]
[1726271063255,2.2574248,138.75,138.74,24.1283636]
[1726271063455,2.2574248,138.75,138.74,47.9052476]
[1726271072593,2.2574248,138.75,138.74,44.153354]
[1726271074761,2.2574248,138.75,138.74,20.37647]
[1726271074967,2.2574248,138.75,138.74,0.37647]
[1726271079223,2.2574248,138.75,138.74,0.12549]
[1726271079511,15.7231,138.78,138.71,44.2852888]
[1726271079512,2.2574248,138.72,138.71,44.2852888]
[1726271079710,2.2574248,138.72,138.71,44.4107788]
[1726271080507,2.2574248,138.72,138.71,24.4107788]
[1726271082010,2.2574248,138.72,138.71,44.4107788]
[1726271107521,2.2574248,138.72,138.71,20.3829148]
[1726271107722,2.2574248,138.72,138.71,0.3829148]
[1726271108021,2.2574248,138.72,138.71,0.2574248]
[1726271110418,2.2574248,138.72,138.71,0.3829148]
[1726271110618,2.2574248,138.72,138.71,0.5084048]
[1726271110824,2.2574248,138.72,138.71,20.6338948]
[1726271111125,2.2574248,138.72,138.71,44.4107788]
[1726271115430,2.2574248,138.74,138.73,44.027864]
[1726271115809,2.2574248,138.74,138.73,44.153354]
[1726271125849,2.2574248,138.74,138.71,0.2574248]
[1726271126137,2.2574248,138.72,138.71,0.2574248]
[1726271127244,2.2574248,138.72,138.71,24.4107788]
[1726271127540,2.2574248,138.72,138.71,44.4107788]
[1726271132741,2.2574248,138.72,138.71,48.1627211]
[1726271133247,2.2574248,138.72,138.71,62.66839577]
[1726271133739,2.2574248,138.74,138.71,62.66839577]
[1726271133945,2.2574248,138.74,138.73,44.027864]
[1726271134148,2.2574248,138.74,138.73,47.9052963]
[1726271137840,2.2574248,138.74,138.73,47.90519153]
[1726271138423,2.2574248,138.74,138.73,44.153354]
[1726271138846,2.2574248,138.78,138.74,20.25098]
[1726271139052,2.2574248,138.78,138.77,23.776884]
[1726271139262,2.2574248,138.78,138.77,44.153354]
[1726271140251,2.2574248,138.76,138.72,9.45835993]
[1726271140451,2.2574248,138.76,138.73,50.37647]
[1726271140654,2.2574248,138.74,138.73,50.37647]
[1726271141148,2.2574248,138.74,138.73,20.37647]
[1726271142234,2.2574248,138.74,138.73,44.153354]
[1726271145548,2.2574248,138.74,138.73,55.20859458]
[1726271145760,2.2574248,138.76,138.75,20.25098]
[1726271145958,2.2574248,138.76,138.75,44.153354]
[1726271148541,2.2574248,138.78,138.76,23.776884]
[1726271148748,2.2574248,138.78,138.77,58.65902867]
[1726271151847,2.2574248,138.8,138.77,58.65902867]
[1726271152155,0.2574248,138.86,138.8,23.776884]
[1726271152156,2.2574248,138.82,138.8,23.776884]
[1726271152361,2.2574248,138.82,138.81,44.153354]
[1726271164555,2.2574248,138.82,138.81,0.12549]
[1726271164771,2.2574248,138.82,138.8,20.0]
[1726271165278,2.2574248,138.82,138.76,63.22346645]
[1726271165279,2.2574248,138.78,138.77,34.50567467]
[1726271165458,2.2574248,138.78,138.77,45.56091525]
[1726271166179,2.2574248,138.78,138.77,25.56091525]
[1726271166359,2.2574248,138.78,138.77,49.58877925]
[1726271167160,2.2574248,138.78,138.77,49.71426925]
[1726271167664,2.2574248,138.78,138.77,58.65902867]
[1726271168064,2.2574248,138.78,138.77,44.153354]
[1726271168459,2.2574248,138.78,138.77,24.027864]
[1726271168773,2.2574248,138.78,138.77,23.902374]
[1726271169786,2.2574248,138.78,138.77,44.153354]
[1726271176670,2.2574248,138.78,138.77,20.37647]
[1726271176873,2.2574248,138.78,138.76,20.0]
[1726271178186,2.2574248,138.73,138.72,23.776884]
[1726271179295,2.2574248,138.73,138.72,24.027864]
[1726271179466,2.2574248,138.73,138.72,24.153354]
[1726271179788,2.2574248,138.73,138.72,44.153354]
[1726271183796,2.2574248,138.73,138.72,53.44059403]
[1726271184086,2.2574248,138.75,138.72,53.44059403]
[1726271184289,2.2574248,138.75,138.74,44.027864]
[1726271184481,2.2574248,138.75,138.74,44.153354]
[1726271186795,2.2574248,138.77,138.76,44.027864]
[1726271187002,2.2574248,138.77,138.76,44.153354]
[1726271199210,2.2574248,138.77,138.76,47.90386325]
[1726271201316,2.2574248,138.77,138.76,44.153354]
[1726271201607,2.2574248,138.77,138.76,47.9035935]
[1726271202197,2.2574248,138.77,138.76,24.1267095]
[1726271202502,2.2574248,138.77,138.76,20.37647]
[1726271202702,2.2574248,138.77,138.76,24.1267095]
[1726271203100,2.2574248,138.77,138.76,23.7502395]
[1726271203417,2.2574248,138.74,138.73,20.0]
[1726271203706,2.2574248,138.74,138.73,20.12549]
[1726271204292,2.2574248,138.74,138.73,29.41273003]
[1726271204705,2.2574248,138.74,138.73,53.44059403]
[1726271206409,2.2574248,138.74,138.73,44.153354]
[1726271206813,2.2574248,138.74,138.73,0.37647]
[1726271208597,2.2574248,138.72,138.71,27.74140506]
[1726271208912,2.2574248,138.72,138.71,51.89475906]
[1726271215113,2.2574248,138.74,138.71,61.18199909]
[1726271215321,2.2574248,138.74,138.73,44.027864]
[1726271215533,2.2574248,138.74,138.73,44.153354]
[1726271222705,2.2574248,138.74,138.73,58.65902867]
[1726271222917,2.2574248,138.76,138.75,20.25098]
[1726271223137,2.2574248,138.76,138.75,38.65902867]
[1726271223323,2.2574248,138.76,138.75,58.65902867]
[1726271223716,2.2574248,138.78,138.77,20.25098]
[1726271224029,2.2574248,138.78,138.77,58.65902867]
[1726271224234,2.2574248,138.78,138.77,44.153354]
[1726271224433,2.2574248,138.78,138.77,58.65902867]
[1726271226827,2.2574248,138.78,138.77,44.153354]
[1726271229337,2.2574248,138.78,138.77,58.65902867]
[1726271230429,2.2574248,138.8,138.78,23.776884]
[1726271230630,2.2574248,138.82,138.79,58.65902867]
[1726271230833,2.2574248,138.82,138.81,58.53353867]
[1726271231043,2.2574248,138.82,138.81,58.65902867]
[1726271231534,2.2574248,138.82,138.81,38.65902867]
[1726271231722,2.2574248,138.82,138.81,58.65902867]
[1726271232547,2.2574248,138.82,138.81,20.37647]
[1726271234138,2.2574248,138.82,138.81,0.37647]
[1726271234339,2.2574248,138.82,138.81,34.88214467]
[1726271234547,2.2574248,138.82,138.81,20.37647]
[1726271236257,2.2574248,138.82,138.81,44.153354]
[1726271246547,2.2574248,138.82,138.81,24.153354]
[1726271248040,2.2574248,138.82,138.81,44.153354]
[1726271251151,2.2574248,138.82,138.81,53.44059403]
[1726271252772,2.2574248,138.82,138.81,44.153354]
[1726271257358,2.2574248,138.82,138.81,53.44059403]
[1726271258963,0.2574248,138.86,138.83,0.25098]
[1726271259164,0.2574248,138.86,138.85,58.53353867]
[1726271259466,0.2574248,138.86,138.85,58.65902867]
[1726271263547,0.2574248,138.86,138.85,47.90083348]
[1726271263972,0.2574248,138.86,138.85,47.90091872]
[1726271265177,0.2574248,138.86,138.85,62.40659339]
[1726271270701,0.2574248,138.86,138.85,58.65902867]
[1726271270992,0.2574248,138.86,138.85,62.40621965]
[1726271272479,0.2574248,138.86,138.85,62.15523965]
[1726271273874,0.2574248,138.86,138.85,62.40621965]
[1726271274056,0.2574248,138.86,138.85,58.65902867]
[1726271274254,0.2574248,138.86,138.85,62.40629011]
[1726271277353,0.2574248,138.86,138.85,58.65902867]
[1726271277762,0.2574248,138.86,138.85,62.40596029]
[1726271283491,0.2574248,138.86,138.85,58.65902867]
[1726271284278,0.2574248,138.86,138.85,62.40595117]
[1726271287796,0.2574248,138.86,138.85,62.40574779]
[1726271289172,0.2574248,138.86,138.85,47.90007312]
[1726271289397,0.2574248,138.86,138.85,62.40574779]